bitfinex/quotes_ETHUSD_20250906
["timestamp","ask_amount","ask_price","bid_price","bid_amount"]
[1757151984209,0.2975,4295.4,4295.3,9.18612609]
[1757151985424,0.2975,4295.4,4295.3,23.73312609]
[1757151985575,0.2975,4295.4,4295.3,25.44412609]
[1757151985775,0.7725,4295.4,4295.3,25.44412609]
[1757151987525,0.2975,4295.4,4295.3,25.44412609]
[1757151987810,0.7725,4295.4,4295.3,25.44412609]
[1757151988402,0.2975,4295.4,4295.3,22.66312609]
[1757151989711,0.7725,4295.4,4295.3,22.66312609]
[1757151990033,1.77275424,4295.4,4295.3,10.89712609]
[1757151990175,1.77275424,4295.4,4295.3,9.18612609]
[1757151990512,1.77275424,4295.4,4295.3,5.32812609]
[1757151990728,1.77275424,4295.4,4295.3,9.18612609]
[1757151991587,0.76875424,4295.4,4295.3,9.18612609]
[1757151994530,1.77275424,4295.4,4295.3,9.18612609]
[1757151995428,1.77275424,4295.4,4295.3,23.73312609]
[1757151995624,1.77275424,4295.4,4295.3,25.44412609]
[1757151995824,0.76875424,4295.4,4295.3,25.44412609]
[1757151996126,0.29375424,4295.4,4295.3,21.58612609]
[1757151996292,0.76875424,4295.4,4295.3,25.44412609]
[1757152000977,0.76875424,4295.4,4295.3,25.44812609]
[1757152001401,0.76975424,4295.4,4295.3,25.44812609]
[1757152009628,1.91382966,4295.4,4295.3,16.262]
[1757152009849,1.91382966,4295.4,4294.7,0.004]
[1757152009850,0.116,4295.3,4294.7,0.004]
[1757152010049,1.43640225,4295.2,4295.0,3.0]
[1757152010274,0.20767631,4295.4,4295.2,3.0]
[1757152010470,0.17857542,4295.4,4295.3,3.858]
[1757152010632,0.001,4295.4,4295.3,1.711]
[1757152010829,1.7147,4295.4,4295.3,1.711]
[1757152011034,0.116,4295.3,4295.0,2.32824832]
[1757152011260,0.3064,4295.1,4295.0,2.32824832]
[1757152011457,0.116,4295.0,4294.8,2.51069823]
[1757152011662,0.7472,4294.9,4294.8,2.51069823]
[1757152011936,0.7472,4294.9,4294.8,6.36869823]
[1757152013040,0.7472,4294.9,4294.8,9.36869823]
[1757152014537,1.7137,4294.9,4294.8,6.858]
[1757152014741,0.7472,4294.9,4294.8,6.858]
[1757152015279,0.7472,4294.9,4294.8,9.18639096]
[1757152015475,0.7472,4294.9,4294.8,25.44539096]
[1757152015679,1.89667,4294.9,4294.8,19.259]
[1757152015882,1.89667,4294.9,4294.8,25.44539713]
[1757152018887,1.89667,4294.9,4294.8,21.58739713]
[1757152019089,0.93017,4294.9,4294.8,25.44539713]
[1757152020290,0.48937,4294.9,4294.8,21.58739713]
[1757152020488,0.48937,4294.9,4294.8,25.44539713]
[1757152020699,0.3064,4294.9,4294.8,21.58739713]
[1757152021023,0.7472,4294.9,4294.8,21.58739713]
[1757152021193,0.7472,4294.9,4294.8,25.44539713]
[1757152021393,0.7472,4294.9,4294.8,23.117]
[1757152021598,1.7137,4294.9,4294.8,7.06]
[1757152021767,5.241147,4294.9,4294.8,7.06]
[1757152021972,2.32860024,4294.5,4293.5,2.32905987]
[1757152022186,0.3064,4293.6,4293.5,2.32905987]
[1757152022372,0.7472,4293.6,4293.5,2.32905987]
[1757152023093,0.4408,4293.6,4293.5,6.18705987]
[1757152024366,0.9665,4294.0,4293.7,2.32897058]
[1757152024571,0.4408,4293.8,4293.7,2.32897058]
[1757152024771,0.7472,4293.8,4293.7,9.18697058]
[1757152025400,0.7472,4293.8,4293.7,23.73597058]
[1757152025606,0.7472,4293.8,4293.7,25.44697058]
[1757152026604,0.7722,4293.8,4293.7,25.44697058]
[1757152027681,0.025,4293.8,4293.7,26.66937058]
[1757152028067,0.7722,4293.8,4293.7,25.44697058]
[1757152028778,0.025,4293.8,4293.7,25.44697058]
[1757152029510,0.025,4293.8,4293.7,26.66937058]
[1757152030068,0.025,4293.8,4293.7,25.44697058]
[1757152030406,0.7988,4293.8,4293.7,25.44697058]
[1757152032068,0.7988,4293.8,4293.7,21.58899364]
[1757152032266,1.88804,4293.8,4293.7,23.118]
[1757152032691,0.97044,4293.8,4293.7,21.668]
[1757152033097,0.97044,4293.8,4293.7,22.44699364]
[1757152033278,0.97044,4293.8,4293.7,9.01199364]
[1757152033712,0.97044,4293.8,4293.7,7.062]
[1757152034013,0.7988,4293.8,4293.7,9.39099364]
[1757152034372,0.7988,4293.8,4293.7,13.24999364]
[1757152034568,1.7164,4293.8,4293.7,9.39099364]
[1757152034876,1.7164,4293.8,4293.7,7.062]
[1757152035269,1.7164,4293.8,4293.7,3.859]
[1757152035504,1.7164,4293.8,4293.7,17.341]
[1757152035505,2.42656323,4293.8,4293.7,17.341]
[1757152036577,3.12502626,4293.8,4293.7,17.341]
[1757152037203,5.45396566,4293.8,4293.7,17.341]
[1757152037410,5.45396566,4293.8,4293.7,13.482]
[1757152037708,5.45396566,4293.8,4292.8,0.004]
[1757152037709,2.3292487,4293.3,4292.8,0.004]
[1757152037912,2.3292487,4293.3,4293.2,1.712]
[1757152038083,1.25178105,4293.7,4293.2,4.8335]
[1757152038084,0.77828105,4293.7,4293.2,4.8335]
[1757152038285,0.69845328,4293.7,4293.6,1.712]
[1757152038497,1.17195328,4293.7,4293.6,1.712]
[1757152038689,0.4735,4293.7,4293.3,2.32921055]
[1757152038889,0.4735,4293.7,4292.9,2.32942765]
[1757152039217,0.4735,4293.7,4293.2,2.32924663]
[1757152039377,0.4735,4293.6,4293.2,2.32924663]
[1757152039578,0.4735,4293.6,4293.3,3.859]
[1757152043094,0.28273951,4293.7,4293.3,3.859]
[1757152043288,0.4735,4293.6,4293.3,3.859]
[1757152043487,0.4735,4293.5,4293.3,3.859]
[1757152045380,0.4735,4293.5,4293.4,13.484]
[1757152046322,0.025,4293.8,4293.4,13.484]
[1757152046484,0.4735,4293.7,4293.5,3.859]
[1757152047626,0.4735,4293.6,4293.5,3.859]
[1757152048393,0.4735,4293.6,4293.5,4.55742238]
[1757152050498,0.4735,4293.6,4293.5,3.859]
[1757152055039,0.025,4293.8,4293.5,3.859]
[1757152055216,0.4735,4293.6,4293.5,3.859]
[1757152056231,0.35514485,4293.8,4293.5,3.859]
[1757152056433,0.82864485,4293.8,4293.5,3.859]
[1757152056636,0.4735,4293.7,4293.5,3.859]
[1757152056942,0.35514485,4293.8,4293.5,3.859]
[1757152057147,0.4735,4293.6,4293.5,3.859]
[1757152058447,0.36215929,4293.7,4293.5,3.859]
[1757152058819,0.4735,4293.6,4293.5,3.859]
[1757152064867,0.4735,4293.6,4293.5,6.18810213]
[1757152065464,0.026,4293.8,4293.6,2.32904043]
[1757152065765,0.026,4293.8,4293.7,3.859]
[1757152066099,0.026,4293.8,4293.7,3.8765]
[1757152066253,0.116,4293.6,4293.4,15.8131507]
[1757152066454,0.116,4293.6,4293.5,15.81310213]
[1757152067332,0.116,4293.6,4293.5,19.67210213]
[1757152067534,0.116,4293.6,4293.5,19.78810213]
[1757152069945,0.116,4293.6,4293.5,23.81130213]
[1757152070285,0.116,4293.6,4293.5,12.03930213]
[1757152070475,0.116,4293.6,4293.5,10.32730213]
[1757152070785,0.026,4293.8,4293.7,2.32899364]
[1757152070984,0.026,4293.8,4293.7,6.18799364]
[1757152071285,0.026,4293.8,4293.7,7.21119364]
[1757152071484,0.026,4293.8,4293.7,40.21119364]
[1757152071653,0.001,4294.7,4294.2,2.32872246]
[1757152071853,0.116,4294.4,4294.2,9.18772246]
[1757152072155,0.116,4294.6,4294.2,10.21092246]
[1757152072895,0.116,4294.6,4294.2,10.32692246]
[1757152074689,0.001,4294.5,4294.2,10.32692246]
[1757152075466,0.001,4294.5,4294.2,26.59192246]
[1757152077147,0.001,4294.5,4294.2,25.56872246]
[1757152077359,0.001,4294.5,4294.2,22.78672246]
[1757152077777,0.4117,4294.7,4294.6,2.32850556]
[1757152077997,0.025,4294.8,4294.7,2.32845134]
[1757152078203,1.041,4294.8,4294.7,2.32845134]
[1757152078505,1.3361,4294.8,4294.7,3.02662016]
[1757152079004,1.3361,4294.8,4294.7,6.88462016]
[1757152079577,1.3361,4294.8,4294.7,7.06321049]
[1757152079903,0.7708,4294.8,4294.7,7.06321049]
[1757152081904,1.96758,4294.8,4294.7,0.69816882]
[1757152082082,0.116,4294.7,4294.3,2.32865151]
[1757152082271,0.116,4294.7,4294.2,13.484]
[1757152082272,0.116,4294.2,4294.1,2.32842625]
[1757152082466,0.116,4294.2,4293.7,0.69827932]
[1757152082467,1.8778,4294.2,4293.7,0.69827932]
[1757152082670,0.116,4293.7,4293.4,2.32915637]
[1757152082871,0.116,4293.7,4293.6,2.32904788]
[1757152083315,0.4111,4293.7,4293.6,2.32904788]
[1757152083469,0.8618,4293.7,4293.6,6.18704788]
[1757152083966,0.8618,4293.7,4293.6,9.18704788]
[1757152084170,0.8618,4293.7,4293.5,2.32906012]
[1757152084171,1.8778,4293.7,4293.5,2.32906012]
[1757152084403,0.2951,4293.7,4293.6,2.994]
[1757152084928,1.7618,4293.7,4293.5,2.23706012]
[1757152085117,1.5827,4293.6,4293.5,2.23706012]
[1757152085298,1.8778,4293.6,4293.5,6.08806012]
[1757152085499,1.8778,4293.6,4293.5,22.34706012]
[1757152086597,1.8778,4293.6,4293.5,20.122]
[1757152086796,2.06558,4293.6,4293.5,23.122]
[1757152087126,1.8778,4293.6,4293.5,23.122]
[1757152087347,1.8778,4293.6,4293.5,10.055]
[1757152087546,1.8778,4293.6,4293.5,10.048]
[1757152088230,0.116,4293.6,4293.5,12.37710213]
[1757152088412,0.116,4293.6,4293.5,16.23510213]
[1757152088732,0.8618,4293.6,4293.5,13.24910213]
[1757152088934,0.116,4293.6,4293.5,13.30100213]
[1757152089232,0.8618,4293.6,4293.5,13.24910213]
[1757152090031,0.5667,4293.6,4293.5,13.24910213]
[1757152090717,0.5667,4293.6,4293.5,16.24910213]
[1757152091934,0.5667,4293.6,4293.5,16.25310213]
[1757152095430,0.5667,4293.6,4293.5,25.45610213]
[1757152096870,0.8631,4293.6,4293.5,25.45610213]
[1757152097170,0.8631,4293.6,4293.5,21.59810213]
[1757152097171,1.8369,4293.6,4293.5,21.59810213]
[1757152097370,1.8369,4293.6,4293.5,23.127]
[1757152098137,1.8369,4293.6,4293.5,23.005]
[1757152098572,1.8369,4293.6,4293.5,23.0]
[1757152098755,1.8369,4293.6,4293.5,22.694]
[1757152099253,1.8369,4293.6,4293.5,25.02310213]
[1757152100202,1.8369,4293.6,4293.5,22.45710213]
[1757152100344,1.8369,4293.6,4293.5,20.128]
[1757152102370,1.8369,4293.6,4293.5,22.45710213]
[1757152104490,0.8631,4293.6,4293.5,22.45710213]
[1757152104682,0.8631,4293.6,4293.5,20.128]
[1757152105880,0.8631,4293.6,4293.5,7.063]
[1757152106959,0.8631,4293.6,4293.5,10.921]
[1757152107160,1.8369,4293.6,4293.5,10.921]
[1757152109294,1.8369,4293.6,4293.5,7.063]
[1757152109498,1.8369,4293.6,4293.5,10.921]
[1757152110206,1.8369,4293.6,4293.5,10.925]
[1757152110805,1.8379,4293.6,4293.5,10.925]
[1757152112805,0.8641,4293.6,4293.5,10.925]
[1757152115381,0.8641,4293.6,4293.5,20.128]
[1757152115961,0.8641,4293.6,4293.5,7.063]
[1757152117117,0.8641,4293.6,4293.5,10.921]
[1757152120228,2.02879,4293.6,4293.5,10.921]
[1757152121748,2.02879,4293.6,4293.5,7.063]
[1757152121946,4.35783788,4293.6,4293.5,7.063]
[1757152122111,5.03383788,4293.6,4293.5,7.063]
[1757152122443,5.03383788,4293.6,4293.5,10.921]
[1757152123604,2.32941625,4293.0,4292.0,1.17276405]
[1757152123808,2.32941625,4293.0,4292.1,36.18780997]
[1757152123809,0.48631784,4292.9,4292.1,36.18780997]
[1757152124011,0.4572,4292.8,4292.2,33.0]
[1757152124245,0.4572,4292.8,4292.4,3.0]
[1757152124414,0.4572,4292.7,4292.5,3.858]
[1757152124621,3.31031625,4293.0,4292.6,3.858]
[1757152124622,1.01001716,4293.0,4292.6,3.858]
[1757152124850,0.304,4292.7,4292.6,6.858]
[1757152125145,0.7612,4292.7,4292.6,6.858]
[1757152125511,0.4572,4292.7,4292.6,20.342]
[1757152126244,1.7421,4292.7,4292.6,5.351]
[1757152126546,1.7421,4292.7,4292.6,10.921]
[1757152126717,1.95261529,4292.7,4292.6,10.921]
[1757152127240,4.28215147,4292.7,4292.6,10.921]
[1757152128649,4.28215147,4292.7,4292.6,10.925]
[1757152131440,0.4572,4293.1,4292.6,10.9769]
[1757152131627,0.001,4293.6,4292.8,2.32948192]
[1757152131827,2.33009675,4293.6,4293.4,1.712]
[1757152132054,2.33009675,4293.6,4293.5,3.863]
[1757152132256,3.61499675,4293.6,4292.8,2.32944109]
[1757152132434,3.61499675,4293.6,4292.8,2.32944169]
[1757152132630,0.001,4293.6,4293.5,0.0519]
[1757152133553,0.001,4293.6,4293.5,3.9149]
[1757152134170,0.001,4293.6,4293.5,6.9149]
[1757152134333,0.4582,4293.6,4293.5,6.864]
[1757152134528,0.4582,4293.6,4293.5,3.864]
[1757152134952,2.32910213,4293.5,4290.8,0.029]
[1757152135153,1.4381,4293.4,4291.2,33.864]
[1757152135331,2.78643593,4293.3,4292.5,2.32959199]
[1757152135533,2.32923593,4293.3,4293.2,1.712]
[1757152135780,2.32923593,4293.3,4292.4,2.32965898]
[1757152135781,0.78477513,4293.3,4292.4,2.30215898]
[1757152135931,2.32927591,4293.2,4292.5,5.352]
[1757152136131,3.31017591,4293.2,4293.1,1.712]
[1757152136337,3.61417591,4293.2,4293.1,1.712]
[1757152136669,4.07137591,4293.2,4293.1,1.712]
[1757152136963,4.75950155,4293.2,4293.1,1.712]
[1757152137163,4.75950155,4293.2,4293.1,5.578]
[1757152137369,2.43022564,4293.2,4293.1,5.578]
[1757152137582,2.43022564,4293.2,4293.1,1.712]
[1757152137768,0.68812564,4293.2,4293.1,1.712]
[1757152137967,0.001,4293.6,4292.4,2.32967654]
[1757152138167,2.3292246,4293.3,4292.6,2.32954764]
[1757152138331,2.78636157,4293.4,4292.6,2.32954764]
[1757152138534,2.78636157,4293.4,4292.7,2.32952997]
[1757152138735,0.83693753,4293.4,4292.7,2.32952997]
[1757152138946,3.16609403,4293.4,4292.8,3.866]
[1757152141404,2.32921289,4293.3,4292.8,3.866]
[1757152141614,1.4381,4293.3,4292.8,3.866]
[1757152141769,2.70889807,4293.4,4292.8,3.866]
[1757152141969,1.4381,4293.2,4292.8,3.866]
[1757152143878,0.4572,4293.1,4292.8,3.866]
[1757152144188,0.116,4292.8,4292.4,2.32969846]
[1757152144405,0.116,4292.8,4292.6,3.0]
[1757152144780,0.116,4292.8,4292.6,5.32958449]
[1757152144976,0.116,4292.8,4292.6,3.0]
[1757152145179,0.116,4292.8,4292.7,6.865]
[1757152145518,0.116,4292.8,4292.7,23.134]
[1757152146216,0.116,4292.8,4292.7,25.46353618]
[1757152147018,0.116,4292.8,4292.7,23.134]
[1757152147458,1.4009,4292.8,4292.7,16.269]
[1757152147608,1.99819,4292.8,4292.7,20.134]
[1757152148119,4.21167192,4292.8,4292.7,7.064]
[1757152149420,4.21167192,4292.8,4292.7,10.929]
[1757152151650,4.21167192,4292.8,4291.9,2.32991831]
[1757152151952,0.4569192,4292.7,4291.9,2.32991831]
[1757152152152,0.45025382,4292.7,4291.9,2.32991831]
[1757152152356,0.4278,4292.6,4291.9,2.32991831]
[1757152152856,0.4278,4292.6,4292.1,3.0]
[1757152153025,0.4278,4292.6,4292.0,6.19391008]
[1757152153026,0.4278,4292.6,4292.2,3.864]
[1757152153227,2.75068113,4292.7,4292.2,3.864]
[1757152153411,2.02693267,4292.6,4292.2,3.864]
[1757152153816,1.502,4292.5,4292.2,3.864]
[1757152154036,0.4278,4292.4,4292.2,3.864]
[1757152154551,0.4278,4292.3,4292.2,3.864]
[1757152154758,0.95273267,4292.6,4292.2,3.864]
[1757152154960,1.0742,4292.8,4292.2,6.19379378]
[1757152155256,1.0742,4292.8,4292.2,3.864]
[1757152155551,1.0742,4292.8,4292.7,1.712]
[1757152155755,2.11807711,4292.8,4292.7,5.577]
[1757152155929,2.11807711,4292.8,4292.7,7.064]
[1757152157443,2.11807711,4292.8,4292.7,10.929]
[1757152157645,4.74375903,4292.8,4292.7,7.064]
[1757152157845,4.74375903,4292.8,4292.7,10.929]
[1757152159257,2.41427711,4292.8,4292.7,10.929]
[1757152159446,4.12768192,4292.8,4292.7,10.929]
[1757152159830,4.12768192,4292.8,4292.7,7.064]
[1757152160037,4.12768192,4292.8,4292.7,10.928]
[1757152164397,3.40368192,4292.8,4292.7,10.928]
[1757152164601,1.503,4293.3,4292.7,10.928]
[1757152165085,1.6534,4293.3,4292.7,10.928]
[1757152165392,1.6534,4293.3,4292.8,6.423]
[1757152165569,1.6534,4293.3,4292.9,3.867]
[1757152165774,3.55483179,4293.3,4293.2,1.712]
[1757152166097,3.85103179,4293.3,4291.8,0.69851833]
[1757152166277,3.85103179,4293.3,4292.6,2.32957224]
[1757152166464,0.4278,4293.2,4292.6,2.32957224]
[1757152166662,0.4278,4293.2,4292.4,2.32969718]
[1757152167081,0.4278,4293.2,4292.7,2.32953249]
[1757152167398,1.502,4293.2,4292.8,3.866]
[1757152169202,0.4278,4293.1,4292.8,3.866]
[1757152170287,1.502,4293.1,4292.8,3.866]
[1757152170903,1.0742,4293.1,4292.8,3.866]
[1757152171110,0.4278,4293.0,4292.8,3.866]
[1757152172533,1.0742,4293.1,4292.8,3.866]
[1757152172736,1.502,4293.1,4292.8,3.866]
[1757152173537,0.4278,4293.0,4292.8,3.866]
[1757152175403,0.4278,4293.0,4292.9,13.487]
[1757152175828,1.0742,4293.1,4292.9,13.487]
[1757152176002,1.502,4293.1,4293.0,3.864]
[1757152176836,1.7982,4293.1,4293.0,3.864]
[1757152177036,1.7982,4293.1,4292.9,13.487]
[1757152177358,0.49116,4293.1,4293.0,3.864]
[1757152177726,1.99316,4293.1,4293.0,3.864]
[1757152178318,1.99316,4293.1,4292.5,1.76364227]
[1757152178522,0.49116,4293.1,4293.0,1.712]
[1757152179023,1.99316,4293.1,4291.9,3.0]
[1757152179224,0.792,4292.9,4291.7,0.004]
[1757152179445,0.792,4292.9,4291.9,2.32993332]
[1757152179446,2.32948192,4292.8,4291.9,2.32993332]
[1757152179648,2.32953917,4292.7,4292.0,3.868]
[1757152179858,3.81400747,4292.6,4291.7,2.3340102]
[1757152180057,3.38300747,4292.6,4291.8,2.33002469]
[1757152180262,0.431,4292.5,4291.8,2.33002469]
[1757152180451,0.431,4292.4,4291.9,2.32996682]
[1757152180623,2.9800524,4292.6,4291.9,2.32996682]
[1757152180823,1.4844,4292.5,4291.9,2.32996682]
[1757152181047,0.431,4292.4,4292.0,3.868]
[1757152181261,1.4844,4292.4,4292.0,3.868]
[1757152181563,1.4844,4292.3,4292.0,3.868]
[1757152182536,1.4844,4292.3,4292.0,6.19790666]
[1757152182736,1.4844,4292.3,4292.0,3.868]
[1757152184894,0.431,4292.5,4292.1,6.19684547]
[1757152185060,1.4844,4292.5,4292.2,3.867]
[1757152185464,1.0534,4292.5,4292.4,1.712]
[1757152185690,1.7714,4292.5,4292.4,1.712]
[1757152186392,1.7714,4292.5,4291.9,2.99989524]
[1757152186686,1.7714,4292.5,4291.7,0.00393332]
[1757152186687,1.4844,4292.4,4292.0,2.32987632]
[1757152186982,1.4844,4292.4,4291.7,2.33380792]
[1757152187891,1.4844,4292.4,4291.9,2.32992918]
[1757152188088,0.431,4292.3,4291.9,2.32992918]
[1757152188765,0.431,4292.3,4292.0,3.866]
[1757152188968,1.4844,4292.3,4292.0,3.866]
[1757152189487,1.0534,4292.3,4292.0,3.866]
[1757152189652,0.431,4292.2,4292.0,3.866]
[1757152189853,0.431,4292.2,4292.0,6.1959026]
[1757152191191,0.793,4293.0,4292.0,6.1959026]
[1757152191192,0.431,4292.5,4292.0,6.1959026]
[1757152191393,0.431,4292.4,4292.0,6.1959026]
[1757152191810,1.0534,4292.5,4292.1,2.32986152]
[1757152192002,1.4844,4292.5,4292.1,2.32986152]
[1757152192487,2.32944553,4292.9,4292.0,3.866]
[1757152192488,0.001,4293.0,4292.2,2.32979352]
[1757152192684,0.30289815,4292.9,4292.3,6.19475095]
[1757152192903,0.431,4292.9,4292.3,6.19475095]
[1757152193506,0.431,4292.9,4292.4,2.09672607]
[1757152193718,1.4844,4292.8,4292.3,5.96176297]
[1757152194009,1.0534,4292.8,4292.3,5.96176297]
[1757152194215,0.431,4292.7,4292.3,5.96176297]
[1757152194416,0.431,4292.6,4292.3,5.96176297]
[1757152194613,0.431,4292.6,4292.3,3.865]
[1757152194991,0.431,4292.6,4292.3,5.96177393]
[1757152195200,1.0534,4292.7,4292.3,3.865]
[1757152195414,0.116,4292.4,4292.3,3.865]
[1757152195714,0.116,4292.4,4292.3,16.27]
[1757152195916,0.116,4292.4,4292.3,20.135]
[1757152197319,0.547,4292.4,4292.3,20.135]
[1757152197514,0.116,4292.4,4292.3,22.23177795]
[1757152197716,0.116,4292.4,4292.3,25.23177795]
[1757152203323,0.117,4292.4,4292.3,25.23177795]
[1757152213731,0.5657,4292.4,4292.3,25.23177795]
[1757152213933,0.117,4292.4,4292.3,25.23177795]
[1757152215538,1.5473,4292.4,4292.3,25.23177795]
[1757152215734,1.996,4292.4,4292.3,25.23177795]
[1757152216829,0.117,4292.4,4292.3,25.23177795]
[1757152217654,0.117,4292.4,4292.3,25.22877795]
[1757152240510,0.5879,4292.4,4292.3,25.22877795]
[1757152247692,0.117,4292.4,4292.3,25.22877795]
[1757152248521,0.5879,4292.4,4292.3,25.22877795]
[1757152254962,1.6688,4292.4,4292.3,25.22877795]
[1757152258737,0.116,4292.8,4292.7,2.32953618]
[1757152259061,1.3797,4292.8,4292.7,6.86]
[1757152259355,1.8506,4292.8,4292.7,3.0]
[1757152259522,1.8506,4292.8,4292.7,7.5585167]
[1757152259719,1.8506,4292.8,4292.7,4.5585167]
[1757152260366,2.03586,4292.8,4292.7,4.5585167]
[1757152261757,2.03586,4292.8,4292.7,9.2705167]
[1757152263357,2.03586,4292.8,4292.7,6.2705167]
[1757152266560,2.03586,4292.8,4292.7,11.6225167]
[1757152269846,2.03586,4292.8,4292.7,7.064]
[1757152270982,2.03586,4292.8,4292.7,10.924]
[1757152273502,2.03686,4292.8,4292.7,10.924]
[1757152274098,4.36634192,4292.8,4292.7,7.064]
[1757152274268,2.03686,4292.8,4292.7,17.346]
[1757152275184,2.03686,4292.8,4292.7,13.486]
[1757152275389,2.03686,4292.8,4292.7,17.346]
[1757152279902,4.36634192,4292.8,4292.7,1.712]
[1757152280072,4.36634192,4292.8,4292.7,7.064]
[1757152280271,4.36634192,4292.8,4292.0,0.69856387]
[1757152280507,0.4675,4292.7,4292.1,2.32986183]
[1757152280699,1.59101988,4292.6,4292.1,2.32986183]
[1757152280867,1.5619,4292.5,4291.9,2.32996869]
[1757152281204,1.5619,4292.4,4291.5,2.50890124]
[1757152281372,1.5619,4292.4,4291.8,3.86]
[1757152281573,1.5619,4292.3,4291.8,3.86]
[1757152281793,2.53360959,4292.5,4291.8,3.86]
[1757152282073,2.53360959,4292.5,4291.9,3.0]
[1757152282074,1.5619,4292.2,4291.9,3.0]
[1757152282402,1.5619,4292.1,4292.0,6.86]
[1757152282703,1.5619,4292.1,4292.0,0.67]
[1757152282890,1.5619,4292.1,4291.7,2.33007225]
[1757152283095,1.5619,4292.1,4291.8,2.33001737]
[1757152283297,1.0944,4292.1,4291.8,2.33001737]
[1757152283499,1.5619,4292.1,4291.8,2.33001737]
[1757152283806,1.5619,4292.1,4291.6,2.09711995]
[1757152284006,1.5619,4292.1,4291.7,5.95706823]
[1757152284508,1.5619,4292.1,4291.7,3.86]
[1757152284705,1.0944,4292.1,4291.7,3.86]
[1757152284885,0.4675,4292.0,4291.7,3.86]
[1757152285087,0.4675,4292.0,4291.7,5.95706488]
[1757152285487,0.4675,4292.0,4291.9,4.712]
[1757152285795,0.4675,4292.0,4291.9,8.572]
[1757152287290,1.0944,4292.1,4291.9,8.572]
[1757152287485,0.4675,4292.3,4291.9,8.572]
[1757152287692,2.5044612,4292.5,4291.9,8.572]
[1757152287892,1.5619,4292.2,4291.9,8.572]
[1757152288714,0.174816,4292.5,4291.9,8.572]
[1757152288878,0.4675,4292.4,4291.9,10.66896998]
[1757152289104,1.5619,4292.3,4291.9,10.66896998]
[1757152289376,1.5619,4292.2,4291.9,8.572]
[1757152289576,1.5619,4292.1,4291.9,8.572]
[1757152289772,1.5619,4292.0,4291.9,8.572]
[1757152290719,1.8757,4292.0,4291.9,8.572]
[1757152292336,1.5619,4292.0,4291.9,8.572]
[1757152293512,1.5619,4292.0,4291.9,4.712]
[1757152293699,1.5619,4292.0,4291.9,8.572]
[1757152295099,0.4675,4292.3,4291.9,8.572]
[1757152295336,1.5619,4292.2,4291.9,10.66896392]
[1757152295504,0.4675,4292.2,4292.0,2.09692337]
[1757152295708,0.4675,4292.2,4292.1,6.86]
[1757152296737,1.5619,4292.2,4292.1,6.86]
[1757152296942,1.8757,4292.2,4292.1,6.86]
[1757152298621,2.31371703,4292.2,4292.1,6.86]
[1757152299356,1.8757,4292.2,4292.1,6.86]
[1757152301949,1.8757,4292.2,4292.1,3.86]
[1757152302645,1.8757,4292.2,4291.9,1.712]
[1757152302852,0.5652,4292.1,4292.0,3.86]
[1757152303453,0.5652,4292.1,4291.9,3.80895673]
[1757152303653,0.5652,4292.1,4292.0,3.86]
[1757152304622,0.5652,4292.1,4291.9,3.80895673]
[1757152304821,0.5652,4292.1,4292.0,3.86]
[1757152305554,0.5652,4292.1,4292.0,5.95692451]
[1757152305854,0.116,4292.1,4292.0,5.95692451]
[1757152309676,0.116,4292.1,4292.0,3.86]
[1757152309982,0.116,4292.1,4292.0,5.95692451]
[1757152310346,0.116,4292.1,4292.0,5.96092451]
[1757152310677,0.117,4292.1,4292.0,5.96092451]
[1757152314511,1.9704,4292.1,4292.0,3.864]
[1757152315558,1.9704,4292.1,4292.0,0.004]
[1757152315758,1.9704,4292.1,4292.0,3.863]
[1757152319190,1.9704,4292.1,4292.0,0.004]
[1757152319356,2.16744,4292.1,4292.0,3.863]
[1757152319761,1.9704,4292.1,4292.0,3.863]
[1757152322185,1.9704,4292.1,4292.0,4.0811506]
[1757152325379,1.9704,4292.1,4292.0,9.4341506]
[1757152325701,1.9704,4292.1,4291.0,0.116]
[1757152326029,1.8544,4292.1,4292.0,7.066]
[1757152326228,2.27282474,4292.1,4292.0,7.066]
[1757152326522,2.97151226,4292.1,4291.2,1.86445041]
[1757152326693,1.5576,4292.0,4291.5,2.09712651]
[1757152327084,1.5576,4291.9,4291.5,2.09712651]
[1757152327417,1.5576,4291.8,4291.5,2.09712651]
[1757152327581,0.4492,4291.7,4291.6,3.859]
[1757152327983,0.4492,4291.7,4291.3,2.0398233]
[1757152328483,1.1084,4291.8,4291.3,2.0398233]
[1757152328985,1.1084,4291.8,4291.4,2.09717572]
[1757152329185,0.69869239,4292.0,4291.2,2.09731543]
[1757152329395,1.5576,4291.7,4291.5,0.004]
[1757152329609,1.5576,4291.7,4291.6,3.859]
[1757152330211,0.4492,4291.7,4291.6,3.859]
[1757152330414,2.25019239,4292.0,4291.6,3.859]
[1757152330580,1.81639239,4292.0,4291.6,3.859]
[1757152330781,0.4338,4291.9,4291.6,3.859]
[1757152331284,1.5515,4291.9,4291.5,0.004]
[1757152331479,1.5515,4291.9,4291.6,3.859]
[1757152331901,0.4338,4291.9,4291.6,3.859]
[1757152332308,1.5515,4291.9,4291.6,3.859]
[1757152334190,0.4338,4291.8,4291.6,3.859]
[1757152335223,0.69869239,4292.0,4291.6,3.859]
[1757152335399,1.5515,4291.9,4291.7,14.559]
[1757152335602,1.8455,4291.8,4291.7,14.559]
[1757152335799,1.8455,4291.8,4291.7,7.066]
[1757152336817,1.5515,4291.8,4291.7,7.066]